fUSD/lending_fUSD_20251223
["ID","MTS","AMOUNT","RATE_DAILY","PERIOD"]
[399568431,1766501439522,-166.66,0.00015799,2]
[399568432,1766501439532,-163.0,0.000158,2]
[399568433,1766501439543,-5034.0,0.00015804,2]
[399568434,1766501439553,-1000.0,0.00015844,2]
[399568435,1766501439569,-1626.0,0.00015865,2]
[399568436,1766501439868,-500.0,0.00015872,2]
[399568437,1766501439879,-200.0,0.00015872,2]
[399568438,1766501439889,-1626.0,0.00015874,2]
[399568439,1766501439898,-600.0,0.00015882,2]
[399568440,1766501439908,-5130.3490186,0.00015888,2]
[399568441,1766501439918,-4991.62451398,0.00015888,2]
[399568443,1766501439944,-1055.21135691,0.00015888,2]
[399568444,1766501440056,-4669.93332821,0.00015888,2]
[399568445,1766501440065,-1326.09929735,0.000159,2]
[399568446,1766501440075,-381.94849771,0.000159,2]
[399568447,1766501440085,-630.15717728,0.000159,2]
[399568448,1766501440095,-255.0,0.00015909,2]
[399568449,1766501440104,-3792.4587154,0.00015916,2]
[399568450,1766501440116,-139.20304771,0.00015916,2]
[399568451,1766501440126,-1100.23365218,0.00015916,2]
[399568452,1766501440138,-826.28059818,0.00015916,2]
[399568453,1766501440149,-484.7858429,0.00015916,2]
[399568454,1766501440159,-1626.0,0.00015933,2]
[399568455,1766501440170,-1626.0,0.00015938,2]
[399568456,1766501440179,-521.00014454,0.0001595,2]
[399568457,1766501440197,-132.27985546,0.0001595,2]
[399568458,1766501440207,-1626.0,0.0001595,2]
[399568459,1766501440217,-208.18505237,0.00015951,2]
[399568460,1766501440227,-10773.0,0.00015973,2]
[399568461,1766501440237,-168.0,0.00015979,2]
[399568462,1766501440247,-809.82644583,0.0001599,2]
[399568463,1766501440257,-168.0,0.00015997,2]
[399568464,1766501440269,-1096.55753012,0.00015999,5]
[399568465,1766501440279,-1119.87458418,0.00015999,5]
[399568466,1766501440290,-500.0,0.00015999,2]
[399568467,1766501440299,-275.17274585,0.00015999,2]
[399568468,1766501440311,-500.0,0.00015999,2]
[399568469,1766501440321,-369.26309001,0.00015999,2]
[399568470,1766501440330,-240.41785332,0.00015999,2]
[399568471,1766501440341,-178240.68024847,0.00016,2]
[399568472,1766501440362,-8040.49557726,0.00016,2]
[399568473,1766501440379,-263622.02191796,0.00016,2]
[399568474,1766501440390,-795.64634446,0.00016,7]
[399568475,1766501440400,-508540.3177509,0.00016,4]
[399568476,1766501440410,-500.0,0.00016,2]
[399568477,1766501440420,-151.0,0.00016,2]
[399568478,1766501440431,-151.0,0.00016,2]
[399568479,1766501440441,-151.0,0.00016,2]
[399568480,1766501440451,-151.0,0.00016,2]
[399568481,1766501440461,-151.0,0.00016,2]
[399568482,1766501440471,-151.0,0.00016,2]
[399568483,1766501440482,-151.0,0.00016,2]
[399568484,1766501440492,-151.0,0.00016,2]
[399568485,1766501440503,-151.0,0.00016,2]
[399568486,1766501440513,-151.0,0.00016,2]
[399568487,1766501440523,-151.0,0.00016,2]
[399568488,1766501440534,-168.0,0.00016014,2]
[399568489,1766501440544,-1626.0,0.00016023,2]
[399568490,1766501440555,-168.0,0.00016036,2]
[399568491,1766501440565,-166.66,0.00016038,2]
[399568492,1766501440580,-420.0,0.00016077,2]
[399568493,1766501440591,-420.0,0.00016077,2]
[399568494,1766501440601,-1626.0,0.00016097,2]
[399568495,1766501440612,-630.15717726,0.000161,2]
[399568496,1766501440622,-1626.0,0.00016101,2]
[399568497,1766501440633,-1680.0,0.00016154,2]
[399568498,1766501440644,-3931.66176311,0.00016162,2]
[399568499,1766501440655,-2411.30009326,0.00016162,2]
[399568500,1766501440665,-374.85212732,0.00016165,2]
[399568501,1766501440675,-5000.00887652,0.000162,5]
[399568502,1766501440685,-653.28,0.00016224,2]
[399568503,1766501440695,-617.40005154,0.00016224,2]
[399568504,1766501440706,-630.15717726,0.000163,2]
[399568505,1766501440716,-200.0,0.0001634,2]
[399568506,1766501440726,-1326.09929735,0.000164,2]
[399568507,1766501440740,-3931.66176311,0.00016408,2]
[399568508,1766501440751,-2411.30009326,0.00016408,2]
[399568509,1766501440761,-600.0,0.0001643,2]
[399568510,1766501440772,-500.0,0.00016438,2]
[399568511,1766501440783,-500.0,0.00016438,2]
[399568512,1766501440793,-500.0,0.00016438,2]
[399568513,1766501440805,-500.0,0.00016438,2]
[399568514,1766501440815,-500.0,0.00016438,2]
[399568515,1766501440826,-500.0,0.00016438,2]
[399568516,1766501440836,-500.0,0.00016438,2]
[399568517,1766501440847,-500.0,0.00016438,2]
[399568518,1766501440857,-500.0,0.00016438,2]
[399568519,1766501440867,-500.0,0.00016438,2]
[399568520,1766501440879,-500.0,0.00016438,2]
[399568521,1766501440889,-500.0,0.00016438,2]
[399568522,1766501440899,-500.0,0.00016438,2]
[399568523,1766501440909,-500.0,0.00016438,2]
[399568524,1766501440924,-500.0,0.00016438,2]
[399568525,1766501440934,-500.0,0.00016438,2]
[399568526,1766501440956,-500.0,0.00016438,2]
[399568527,1766501440980,-500.0,0.00016438,2]
[399568528,1766501441005,-500.0,0.00016438,2]
[399568529,1766501441028,-267.38394846,0.00016438,2]
[399568530,1766501441046,-500.0,0.00016438,2]
[399568531,1766501441073,-500.0,0.00016438,2]
[399568532,1766501441101,-7247.56,0.00016438,2]
[399568533,1766501441125,-151.0,0.00016438,2]
[399568534,1766501441149,-151.0,0.00016438,2]
[399568535,1766501441171,-151.0,0.00016438,2]
[399568536,1766501441199,-235.76832595,0.00016438,2]
[399568537,1766501441220,-296.391227,0.00016438,2]
[399568538,1766501441240,-296.391227,0.00016438,2]
[399568539,1766501441259,-296.391227,0.00016438,2]
[399568540,1766501441282,-296.391227,0.00016438,2]
[399568541,1766501441301,-296.391227,0.00016438,2]
[399568542,1766501441325,-296.391227,0.00016438,2]
[399568543,1766501441367,-296.391227,0.00016438,2]
[399568544,1766501441390,-296.391227,0.00016438,2]
[399568545,1766501441411,-178.462043,0.00016438,2]
[399568546,1766501441445,-178.462043,0.00016438,2]
[399568547,1766501441475,-178.462043,0.00016438,2]
[399568548,1766501441500,-178.462043,0.00016438,2]
[399568549,1766501441526,-178.462043,0.00016438,2]
[399568550,1766501441551,-178.462043,0.00016438,2]
[399568551,1766501441580,-178.462043,0.00016438,2]
[399568552,1766501441602,-178.462043,0.00016438,2]
[399568553,1766501441623,-150.0,0.00016438,2]
[399568554,1766501441646,-153.78,0.00016438,2]
[399568555,1766501441668,-150.0,0.00016438,2]
[399568556,1766501441688,-300.0,0.00016438,2]
[399568557,1766501441712,-170.73,0.00016438,2]
[399568558,1766501441733,-170.73,0.00016438,2]
[399568559,1766501441766,-334.5472959,0.00016497,2]
[399568560,1766501441792,-152.00744986,0.00016497,2]
[399568561,1766501441818,-157.8410325,0.00016497,2]
[399568562,1766501441841,-1108.0,0.00016497,2]
[399568563,1766501441863,-718.62777009,0.00016497,2]
[399568564,1766501441885,-370.91026638,0.00016497,2]
[399568565,1766501441906,-653.30012305,0.00016498,2]
[399568566,1766501441927,-630.15717726,0.000165,2]
[399568567,1766501441947,-374.85212732,0.00016533,2]
[399568568,1766501441967,-247.7695039,0.00016544,2]
[399568569,1766501441987,-151.0,0.00016562,2]
[399568570,1766501442007,-151.0,0.00016562,2]
[399568571,1766501442027,-151.0,0.00016562,2]
[399568572,1766501442047,-296.391227,0.00016562,2]
[399568573,1766501442075,-296.391227,0.00016562,2]
[399568574,1766501442101,-296.391227,0.00016562,2]
[399568575,1766501442123,-296.391227,0.00016562,2]
[399568576,1766501442145,-3149.0,0.00016562,2]
[399568577,1766501442166,-178.462043,0.00016562,2]
[399568578,1766501442188,-178.462043,0.00016562,2]
[399568579,1766501442208,-178.462043,0.00016562,2]
[399568580,1766501442228,-178.462043,0.00016562,2]
[399568581,1766501442247,-3523.697,0.00016562,2]
[399568582,1766501442266,-1609.0,0.00016562,2]
[399568583,1766501442285,-1326.0,0.00016562,2]
[399568584,1766501442305,-612.0,0.00016562,2]
[399568585,1766501442324,-1263.0,0.00016562,2]
[399568586,1766501442343,-468.0,0.00016562,2]
[399568587,1766501442360,-1198.0,0.00016562,2]
[399568588,1766501442380,-6532.0,0.00016562,2]
[399568589,1766501442398,-2430.0,0.00016562,2]
[399568590,1766501442415,-4803.0,0.00016562,2]
[399568591,1766501442434,-229.717414,0.00016575,2]
[399568592,1766501442452,-3931.66176311,0.00016654,2]
[399568593,1766501442470,-2411.30009326,0.00016654,2]
[399568594,1766501442488,-500.0,0.00016666,2]
[399568595,1766501442507,-630.15717726,0.000167,2]
[399568596,1766501442525,-165.52,0.00016712,2]
[399568597,1766501442543,-3899.0,0.0001674,2]
[399568598,1766501442561,-640.24385345,0.00016772,2]
[399568599,1766501442579,-300.0,0.00016899,2]
[399568600,1766501442599,-168.0,0.000169,2]
[399568601,1766501442617,-374.85212732,0.000169,2]
[399568602,1766501442635,-10000.0,0.000169,2]
[399568603,1766501442653,-1326.09929735,0.000169,2]
[399568604,1766501442671,-3931.66176311,0.000169,2]
[399568605,1766501442689,-2411.30009326,0.000169,2]
[399568606,1766501442707,-19517.86976876,0.000169,2]
[399568607,1766501442725,-2803.4098618,0.000169,2]
[399568608,1766501442743,-1300.44064978,0.000169,2]
[399568609,1766501442760,-630.15717726,0.000169,2]
[399568610,1766501442778,-797.20615221,0.00016952,2]
[399568611,1766501442796,-600.0,0.00016978,2]
[399568614,1766501442816,-300.0,0.00016985,2]
[399568615,1766501442835,-300.0,0.00016985,2]
[399568616,1766501442852,-300.0,0.00016985,2]
[399568617,1766501442877,-500.0,0.00016986,2]
[399568618,1766501442897,-500.0,0.00016986,2]
[399568619,1766501442917,-500.0,0.00016986,2]
[399568620,1766501442936,-151.0,0.00016986,2]
[399568621,1766501442954,-196.21074,0.00016986,2]
[399568622,1766501442974,-296.391227,0.00016986,2]
[399568623,1766501442993,-296.391227,0.00016986,2]
[399568624,1766501443012,-296.391227,0.00016986,2]
[399568625,1766501443033,-296.391227,0.00016986,2]
[399568626,1766501443052,-178.462043,0.00016986,2]
[399568627,1766501443071,-178.462043,0.00016986,2]
[399568628,1766501443092,-178.462043,0.00016986,2]
[399568629,1766501443114,-42630.12,0.00016986,2]
[399568630,1766501443133,-809.82644583,0.0001699,2]
[399568631,1766501443154,-809.82644583,0.0001699,2]
[399568632,1766501443174,-500.0,0.00016999,2]
[399568633,1766501443204,-500.0,0.00016999,2]
[399568634,1766501443563,-500.0,0.00016999,2]
[399568636,1766501443614,-500.0,0.00016999,2]
[399568637,1766501443624,-500.0,0.00016999,2]
[399568638,1766501443634,-500.0,0.00016999,2]
[399568639,1766501443644,-500.0,0.00016999,2]
[399568640,1766501443655,-500.0,0.00016999,2]
[399568641,1766501443665,-500.0,0.00016999,2]
[399568642,1766501443674,-500.0,0.00016999,2]
[399568643,1766501443684,-500.0,0.00016999,2]
[399568644,1766501443694,-500.0,0.00016999,2]
[399568645,1766501443703,-500.0,0.00016999,2]
[399568646,1766501443714,-500.0,0.00016999,2]
[399568647,1766501443724,-1194.29389268,0.00016999,5]
[399568648,1766501443734,-500.0,0.00016999,2]
[399568649,1766501443744,-401.72,0.00016999,2]
[399568650,1766501443754,-500.0,0.00016999,2]
[399568651,1766501443763,-500.0,0.00016999,2]
[399568652,1766501443774,-1119.87458418,0.00016999,5]
[399568653,1766501443783,-300.0,0.00016999,2]
[399568654,1766501443793,-593.22569855,0.00016999,2]
[399568655,1766501443803,-499282.61558585,0.00017,2]
[399568656,1766501443813,-8883.59778538,0.00017,2]
[399568657,1766501443823,-3307948.51119457,0.00017,2]
[399568658,1766501444732,-151.0,0.00015643,2]
[399568659,1766501444742,-564.0,0.00016562,2]
[399568660,1766501444752,-178.462043,0.00016986,2]
[399568661,1766501444762,-244.33332412,0.00017,2]
[399568662,1766501444773,-7569.95305312,0.00017,2]
[399568663,1766501444785,-2979.06507186,0.00017,2]
[399568664,1766501444797,-1988.8604776,0.00017,2]
[399568665,1766501444821,-7667.96094313,0.00017,2]
[399568666,1766501444833,-334.5064,0.00017,2]
[399568667,1766501444844,-735.24608787,0.00017,2]
[399568668,1766501444925,-391810.21143119,0.00017,2]
[399568669,1766501444945,-619.94646908,0.00017,2]
[399568671,1766501445988,-466.81370507,0.00017,2]
[399568672,1766501446000,-14750.6596,0.00017,2]
[399568673,1766501446012,-2258.61095323,0.00017,2]
[399568674,1766501446176,-58167.34076784,0.00017,2]
[399568675,1766501446188,-1449.46130711,0.00017,2]
[399568676,1766501446200,-3607.02658723,0.00017,2]
[399568677,1766501446236,-23916.42488506,0.00017,2]
[399568678,1766501446248,-2470.82806715,0.00017,2]
[399568679,1766501446311,-875.55,0.00017,2]
[399568682,1766501720152,150.5,5.48e-06,120]
[399568687,1766501841242,220.14101572,0.000176,30]
[399568688,1766501847370,531.11488451,0.000176,30]
[399568689,1766501849571,500.0,0.000176,30]
[399568690,1766501850049,500.0,0.000176,30]
[399568691,1766501850108,644.27528741,0.00017,30]
[399568692,1766502187048,150.0,0.00022,30]
[399568694,1766502632105,-859.424,0.00014392,2]
[399568695,1766502632116,-158.435,0.00014392,2]
[399568697,1766502632126,-269.0,0.00014392,2]
[399568698,1766502632137,-272.4533543,0.00014584,2]
[399568699,1766502632150,-227.5466457,0.00014584,2]
[399568700,1766502632160,-598.12826133,0.00014584,2]
[399568701,1766502632171,-500.0,0.00014584,2]
[399568702,1766502632181,-458.31172248,0.00014584,2]
[399568703,1766502632191,-300.0,0.00014584,2]
[399568704,1766502632201,-606.80431049,0.00014584,2]
[399568705,1766502632243,-433.46426135,0.00014584,2]
[399568706,1766502632256,-159.73142816,0.00014584,2]
[399568707,1766502632266,-300.0,0.00014584,2]
[399568708,1766502632276,-300.0,0.00014584,2]
[399568709,1766502632287,-544.01857184,0.00014585,2]
[399568710,1766502632299,-4837.61447808,0.00014585,2]
[399568711,1766502632311,-8678.95,0.00014585,2]
[399568712,1766502632323,-78293.66896524,0.00014585,2]
[399568713,1766502632335,-1382.12144354,0.00014585,2]
[399568718,1766502638162,-521.3767111,0.00014485,2]
[399568719,1766502638172,-101366.36806449,0.00014585,2]
[399568720,1766502638185,-1323.45921772,0.00014585,2]
[399568721,1766502638197,-404.68821727,0.00014585,2]
[399568722,1766502638209,-999.39958195,0.00014585,2]
[399568723,1766502638221,-955.88436296,0.00014585,2]
[399568724,1766502638232,-878.59516704,0.00014585,2]
[399568725,1766502638243,-506.24704117,0.00014585,2]
[399568726,1766502638258,-1813.94557569,0.00014585,2]
[399568727,1766502638270,-3615.14081481,0.00014585,2]
[399568728,1766502638298,-2169.18029496,0.00014585,2]
[399568729,1766502638311,-600.0,0.00014585,2]
[399568730,1766502638323,-27449.95832474,0.00014585,2]
[399568731,1766502638335,-1549.3014806,0.00014585,2]
[399568732,1766502638347,-338.47817793,0.00014585,2]
[399568733,1766502638358,-1583.41443103,0.00014585,2]
[399568734,1766502638370,-36659.22978072,0.00014585,2]
[399568741,1766502640292,-500.0,0.00014584,2]
[399568742,1766502640302,-500.0,0.00014584,2]
[399568743,1766502640312,-500.0,0.00014584,2]
[399568744,1766502640322,-500.0,0.00014584,2]
[399568745,1766502640333,-500.0,0.00014584,2]
[399568746,1766502640343,-500.0,0.00014584,2]
[399568747,1766502640353,-45.0,0.00014584,2]
[399568748,1766502640379,-455.0,0.00014584,2]
[399568749,1766502640389,-500.0,0.00014584,2]
[399568750,1766502640399,-500.0,0.00014584,2]
[399568751,1766502640409,-500.0,0.00014584,2]
[399568752,1766502640420,-500.0,0.00014584,2]
[399568753,1766502640430,-500.0,0.00014584,2]
[399568754,1766502640440,-500.0,0.00014584,2]
[399568755,1766502640455,-500.0,0.00014584,2]
[399568756,1766502640466,-500.0,0.00014584,2]
[399568757,1766502640475,-500.0,0.00014584,2]
[399568758,1766502640485,-250.65063996,0.00014584,2]
[399568759,1766502640496,-500.0,0.00014584,2]
[399568760,1766502640505,-2879.87181394,0.00014584,2]
[399568761,1766502640515,-1694.36169581,0.00014585,2]
[399568762,1766502640527,-19138.23941,0.00014585,2]
[399568763,1766502640539,-2447.56425142,0.00014585,2]
[399568764,1766502640551,-3531.61320209,0.00014585,2]
[399568765,1766502640563,-269.80509028,0.00014585,2]
[399568766,1766502641398,-493.65095226,0.00014585,2]
[399568767,1766502641410,-696475.10140636,0.00014585,2]
[399568768,1766502641419,-150.0,0.00014585,2]
[399568769,1766502641431,-734.7096662,0.00014586,2]
[399568770,1766502641440,-3855.20527888,0.00014586,2]
[399568771,1766502641449,-1000.0,0.00014586,2]
[399568772,1766502641459,-5515.56620634,0.00014586,2]
[399568773,1766502641469,-150.0,0.00014586,2]
[399568774,1766502641480,-24209.9019,0.00014586,2]
[399568775,1766502641490,-1264.1867,0.00014586,2]
[399568776,1766502641500,-482.26053294,0.00014685,2]
[399568777,1766502641510,-500.0,0.00014685,2]
[399568778,1766502641519,-500.0,0.00014685,2]
[399568779,1766502641529,-500.0,0.00014685,2]
[399568780,1766502641539,-500.0,0.00014685,2]
[399568781,1766502641549,-751.27,0.00014685,2]
[399568782,1766502641558,-500.0,0.00014685,2]
[399568783,1766502641568,-500.0,0.00014685,2]
[399568784,1766502641577,-600.0,0.00014686,2]
[399568785,1766502641587,-33494.9637,0.00014686,2]
[399568786,1766502641596,-500.0,0.00014785,2]
[399568787,1766502641606,-401.72,0.00014785,2]
[399568788,1766502641615,-500.0,0.00014785,2]
[399568789,1766502641625,-500.0,0.00014785,2]
[399568790,1766502641635,-500.0,0.00014785,2]
[399568791,1766502641644,-500.0,0.00014785,2]
[399568792,1766502641654,-3855.20527881,0.00014843,2]
[399568793,1766502641664,-265.56801069,0.00014917,2]
[399568794,1766502641675,-751.27,0.00014959,2]
[399568795,1766502641685,-1944.63,0.00015063,2]
[399568796,1766502641695,-3855.20527881,0.000151,2]
[399568797,1766502641705,-500.0,0.00015142,2]
[399568798,1766502641715,-1500.0,0.00015181,2]
[399568799,1766502641725,-718.72,0.0001521,2]
[399568800,1766502641735,-751.27,0.00015233,2]
[399568801,1766502641745,-600.0,0.00015234,2]
[399568802,1766502641755,-265.56801069,0.00015247,2]
[399568803,1766502641764,-150.0,0.00015297,2]
[399568804,1766502641774,-578.20924308,0.00015324,2]
[399568805,1766502641784,-1108.0,0.00015324,2]
[399568806,1766502641794,-500.0,0.00015324,2]
[399568807,1766502641805,-500.0,0.00015324,2]
[399568808,1766502641815,-500.0,0.00015324,2]
[399568809,1766502641825,-500.0,0.00015324,2]
[399568810,1766502641835,-200.0,0.00015324,2]
[399568811,1766502641845,-352.62790917,0.00015324,2]
[399568812,1766502641854,-207.4,0.00015324,2]
[399568813,1766502641864,-215.0738,0.00015324,2]
[399568814,1766502641875,-223.0315306,0.00015324,2]
[399568815,1766502641885,-231.28369723,0.00015324,2]
[399568816,1766502641894,-239.84119403,0.00015324,2]
[399568817,1766502641905,-208.68965938,0.00015324,2]
[399568818,1766502641922,-500.0,0.00015324,2]
[399568819,1766502641932,-500.0,0.00015324,2]
[399568820,1766502641942,-500.0,0.00015324,2]
[399568821,1766502641952,-718.62777009,0.00015324,2]
[399568822,1766502641962,-500.0,0.00015324,2]
[399568823,1766502641972,-500.0,0.00015324,2]
[399568824,1766502641982,-500.0,0.00015324,2]
[399568825,1766502641992,-500.0,0.00015324,2]
[399568826,1766502642002,-500.0,0.00015324,2]
[399568827,1766502642012,-500.0,0.00015324,2]
[399568828,1766502642024,-500.0,0.00015324,2]
[399568829,1766502642038,-500.0,0.00015324,2]
[399568830,1766502642048,-574.12855637,0.00015324,2]
[399568831,1766502642058,-151.0,0.00015324,2]
[399568832,1766502642068,-322.6107,0.00015324,2]
[399568833,1766502642079,-151.41,0.00015331,2]
[399568834,1766502642090,-3855.20527881,0.00015357,2]
[399568835,1766502642101,-734.70966619,0.00015417,2]
[399568836,1766502642110,-3880.59,0.00015461,2]
[399568837,1766502642120,-751.27,0.00015507,2]
[399568838,1766502642130,-151.0,0.00015547,2]
[399568839,1766502642139,-151.0,0.00015556,2]
[399568840,1766502642150,-151.0,0.00015565,2]
[399568841,1766502642160,-265.56801069,0.00015578,2]
[399568842,1766502642170,-3855.20527881,0.00015614,2]
[399568843,1766502642180,-151.0,0.00015684,2]
[399568844,1766502642190,-521.3767111,0.00015693,2]
[399568845,1766502642199,-255.0,0.00015708,2]
[399568846,1766502642209,-751.27,0.00015781,2]
[399568847,1766502642219,-600.0,0.00015782,2]
[399568848,1766502642229,-500.0,0.00015783,2]
[399568849,1766502642239,-500.0,0.00015783,2]
[399568850,1766502642249,-500.0,0.00015783,2]
[399568851,1766502642259,-500.0,0.00015783,2]
[399568852,1766502642269,-500.0,0.00015783,2]
[399568853,1766502642279,-500.0,0.00015783,2]
[399568854,1766502642289,-333.88776573,0.00015783,2]
[399568855,1766502642299,-999.0,0.00015811,3]
[399568856,1766502642309,-3855.20527881,0.00015872,2]
[399568857,1766502642318,-595.37131296,0.00015872,2]
[399568858,1766502642328,-265.56801069,0.00015908,2]
[399568859,1766502642338,-420.0,0.00015968,2]
[399568860,1766502642348,-420.0,0.00015968,2]
[399568861,1766502642358,-500.0,0.00015999,2]
[399568862,1766502642368,-500.0,0.00015999,2]
[399568863,1766502642378,-500.0,0.00015999,2]
[399568864,1766502642388,-500.0,0.00015999,2]
[399568865,1766502642398,-1680.0,0.00016042,2]
[399568866,1766502642408,-751.27,0.00016055,2]
[399568867,1766502642418,-6068.09,0.000161,2]
[399568868,1766502642428,-3855.20527881,0.00016129,2]
[399568869,1766502642438,-2068.87,0.00016149,2]
[399568870,1766502642447,-5700.0,0.00016174,2]
[399568871,1766502642457,-265.56801069,0.00016239,2]
[399568872,1766502642468,-734.70966619,0.00016248,2]
[399568873,1766502642478,-751.27,0.00016329,2]
[399568874,1766502642495,-600.0,0.0001633,2]
[399568875,1766502642506,-201.98303125,0.00016331,2]
[399568876,1766502642517,-1000.0,0.00016331,2]
[399568877,1766502642526,-500.77132056,0.00016331,2]
[399568878,1766502642536,-628.25452076,0.00016331,2]
[399568879,1766502642546,-3855.20527881,0.00016386,2]
[399568880,1766502642559,-494.0,0.000164,5]
[399568881,1766502642570,-617.40005154,0.0001642,2]
[399568882,1766502642580,-1356.48650024,0.00016428,2]
[399568883,1766502642591,-500.0,0.00016438,2]
[399568884,1766502642602,-500.0,0.00016438,2]
[399568885,1766502642612,-500.0,0.00016438,2]
[399568886,1766502642622,-500.0,0.00016438,2]
[399568887,1766502642632,-500.0,0.00016438,2]
[399568888,1766502642643,-500.0,0.00016438,2]
[399568889,1766502642654,-500.0,0.00016438,2]
[399568890,1766502642664,-7247.57,0.00016438,2]
[399568891,1766502642675,-235.76832595,0.00016438,2]
[399568892,1766502642685,-500.0,0.0001656,2]
[399568893,1766502642695,-500.0,0.00016561,2]
[399568894,1766502642706,-265.56801069,0.00016569,2]
[399568895,1766502642716,-751.29012305,0.00016603,2]
[399568896,1766502642726,-3855.20527881,0.00016643,2]
[399568897,1766502642735,-208.0,0.00016659,2]
[399568898,1766502642745,-5198.79455168,0.0001666,2]
[399568899,1766502642756,-150.0,0.00016673,2]
[399568900,1766502642765,-262.0,0.00016673,2]
[399568901,1766502642775,-212.0,0.00016673,2]
[399568902,1766502642785,-150.0,0.00016673,2]
[399568903,1766502642795,-150.798,0.00016673,2]
[399568904,1766502642806,-150.455,0.00016673,2]
[399568905,1766502642815,-190.36,0.00016673,2]
[399568906,1766502642825,-150.0,0.00016673,2]
[399568907,1766502642834,-150.375,0.00016673,2]
[399568908,1766502642844,-1326.0,0.00016673,2]
[399568909,1766502642854,-3457.0,0.00016673,2]
[399568910,1766502642864,-1609.0,0.00016673,2]
[399568911,1766502642874,-612.0,0.00016673,2]
[399568912,1766502642884,-468.0,0.00016673,2]
[399568913,1766502642895,-1263.0,0.00016673,2]
[399568923,1766502643127,-4806.0,0.00016673,2]
[399568926,1766502643137,-564.0,0.00016673,2]
[399568929,1766502643147,-6532.0,0.00016673,2]
[399568931,1766502643157,-2430.0,0.00016673,2]
[399568933,1766502643166,-1108.0,0.00016693,2]
[399568935,1766502643175,-157.8410325,0.00016693,2]
[399568936,1766502643185,-334.5472959,0.00016693,2]
[399568937,1766502643194,-2757.70067082,0.000167,2]
[399568938,1766502643204,-208.0,0.00016809,2]
[399568939,1766502643215,-500.0,0.00016864,2]
[399568940,1766502643225,-200.0,0.00016864,2]
[399568941,1766502643235,-600.0,0.00016878,2]
[399568943,1766502643244,-196.22588074,0.00016878,2]
[399568944,1766502643255,-500.0,0.00016899,2]
[399568945,1766502643264,-10000.0,0.000169,2]
[399568946,1766502643274,-2652.1985947,0.000169,2]
[399568947,1766502643284,-3855.20527881,0.000169,2]
[399568948,1766502643294,-265.56801069,0.000169,2]
[399568949,1766502643303,-170.60504446,0.000169,2]
[399568950,1766502643314,-934.46995394,0.000169,2]
[399568951,1766502643324,-3150.7858863,0.000169,2]
[399568952,1766502643333,-12618.85047922,0.000169,2]
[399568953,1766502643343,-208.0,0.0001691,2]
[399568954,1766502643354,-208.0,0.00016933,2]
[399568955,1766502643363,-797.20615221,0.00016952,2]
[399568956,1766502643372,-3899.0,0.00016959,2]
[399568957,1766502643381,-640.24385345,0.00016968,2]
[399568958,1766502643390,-1119.87458419,0.00016985,5]
[399568959,1766502643399,-42630.12,0.00016986,2]
[399568960,1766502643408,-1356.48650024,0.0001699,2]
[399568961,1766502643418,-1356.48650024,0.0001699,2]
[399568962,1766502643427,-1157.08423843,0.00016999,5]
[399568963,1766502643437,-1157.08423843,0.00016999,5]
[399568964,1766502643446,-300.0,0.00016999,2]
[399568965,1766502643455,-500.0,0.00016999,2]
[399568966,1766502643464,-500.0,0.00016999,2]
[399568967,1766502643473,-500.0,0.00016999,2]
[399568968,1766502643483,-300.0,0.00016999,2]
[399568969,1766502643492,-500.0,0.00016999,2]
[399568970,1766502643501,-500.0,0.00016999,2]